bitfinex-derivatives/quotes_ETHF0:USTF0_20251210
["timestamp","ask_amount","ask_price","bid_price","bid_amount"]
[1765329028750,0.59413291,3311.1,3311.0,1.8625]
[1765329029251,0.00213291,3311.1,3311.0,1.8625]
[1765329030854,0.00213291,3311.1,3311.0,3.16315925]
[1765329031049,0.59413291,3311.1,3311.0,3.16315925]
[1765329032153,1.18613291,3311.1,3311.0,3.16315925]
[1765329032950,1.18613291,3311.1,3311.0,1.8625]
[1765329033152,1.18613291,3311.1,3311.0,0.4304]
[1765329033353,1.184,3310.8,3310.7,3.2078]
[1765329033750,1.184,3310.6,3310.5,1.827]
[1765329034651,1.184,3310.6,3310.5,1.1177]
[1765329035049,1.184,3310.1,3310.0,1.1177]
[1765329035256,4.3918,3310.1,3310.0,0.4304]
[1765329035653,4.3918,3310.1,3310.0,1.827]
[1765329036753,4.3918,3310.1,3310.0,1.1177]
[1765329040268,4.3918,3310.1,3310.0,1.827]
[1765329041869,3.7998,3310.1,3310.0,1.827]
[1765329042162,1.184,3310.6,3310.5,1.0936]
[1765329042364,1.184,3310.6,3310.5,1.8029]
[1765329042568,3.7998,3310.7,3310.6,1.3966]
[1765329042969,3.2078,3310.7,3310.6,1.3966]
[1765329044172,3.2078,3310.7,3310.5,0.4063]
[1765329044173,1.184,3310.6,3310.5,0.4063]
[1765329044368,0.592,3310.1,3310.0,1.97804]
[1765329044568,3.2078,3310.7,3310.0,1.97804]
[1765329045170,3.2078,3310.7,3310.0,1.827]
[1765329045368,1.184,3310.6,3310.5,1.0936]
[1765329045570,1.184,3310.6,3310.5,0.4063]
[1765329046572,1.184,3310.6,3310.5,1.8029]
[1765329047059,1.184,3310.6,3310.5,1.0936]
[1765329047261,1.184,3310.6,3310.5,0.4063]
[1765329048066,1.184,3310.6,3310.5,1.0936]
[1765329048467,1.184,3310.6,3310.5,1.8029]
[1765329048668,1.184,3310.6,3310.5,1.0936]
[1765329049276,0.592,3310.6,3310.5,1.8029]
[1765329049479,3.7998,3310.7,3310.6,1.3966]
[1765329049873,3.2078,3310.7,3310.6,1.3966]
[1765329054682,3.7998,3310.7,3310.6,1.3966]
[1765329054872,1.1904,3310.6,3310.5,1.098]
[1765329055483,1.1904,3310.6,3310.5,1.8264]
[1765329056580,1.1904,3310.6,3310.5,0.4063]
[1765329056792,1.1904,3310.0,3309.9,3.2078]
[1765329057279,1.1904,3309.7,3309.6,1.42801053]
[1765329057680,1.1904,3309.7,3309.6,0.00791053]
[1765329057986,1.1904,3309.7,3309.6,0.69961053]
[1765329058383,0.5952,3309.7,3309.6,1.42801053]
[1765329058685,1.1904,3309.7,3309.6,1.42801053]
[1765329060191,0.5952,3309.7,3309.6,1.42801053]
[1765329060484,1.1904,3309.7,3309.6,1.42801053]
[1765329060877,0.5952,3309.7,3309.6,1.42801053]
[1765329061080,1.1904,3309.7,3309.6,1.42801053]
[1765329061384,3.2078,3310.2,3310.1,1.4201]
[1765329062383,3.803,3310.7,3310.6,0.6917]
[1765329062588,3.803,3310.7,3310.6,1.4201]
[1765329062788,1.1904,3310.6,3310.5,0.4245]
[1765329063091,0.5952,3310.6,3310.5,1.8446]
[1765329063388,3.2078,3310.7,3310.6,1.4201]
[1765329063691,3.803,3310.7,3310.6,1.4201]
[1765329063989,4.3982,3310.7,3310.6,1.4201]
[1765329064186,3.803,3310.7,3310.6,1.4201]
[1765329064491,1.1904,3310.6,3310.5,1.1162]
[1765329065192,1.1904,3310.6,3310.5,0.4245]
[1765329065385,3.803,3310.7,3310.6,1.4201]
[1765329066084,4.3982,3310.7,3310.6,1.4201]
[1765329067291,3.803,3310.7,3310.6,1.4201]
[1765329067692,4.43893258,3310.7,3310.6,1.4201]
[1765329068387,5.03153258,3310.7,3310.6,0.6917]
[1765329068593,1.1852,3310.6,3310.5,0.4245]
[1765329068794,1.1852,3310.6,3310.5,1.1571]
[1765329069193,1.1852,3310.6,3310.5,1.8921]
[1765329069394,3.2078,3310.7,3310.6,1.4676]
[1765329069593,4.43659845,3310.7,3310.6,1.4676]
[1765329070493,5.02919845,3310.7,3310.6,1.4676]
[1765329071894,5.02919845,3310.7,3310.6,0.7326]
[1765329072097,5.02919845,3310.7,3310.6,1.4676]
[1765329075397,4.43659845,3310.7,3310.6,1.4676]
[1765329076193,3.84399845,3310.7,3310.6,1.4676]
[1765329076496,4.39513291,3311.1,3311.0,0.4281]
[1765329076693,5.2772424,3311.1,3311.0,0.4281]
[1765329076895,5.2772424,3311.1,3311.0,1.1607]
[1765329077799,5.2772424,3311.1,3311.0,1.8957]
[1765329077995,4.39513291,3311.1,3311.0,1.8957]
[1765329078696,4.39513291,3311.1,3311.0,0.4281]
[1765329079589,1.1852,3310.6,3310.5,0.4245]
[1765329079793,1.1852,3310.1,3310.0,1.8921]
[1765329080398,3.2078,3310.7,3310.0,1.8921]
[1765329080598,3.2078,3310.7,3310.6,1.4676]
[1765329080806,4.393,3310.7,3310.6,1.4676]
[1765329081702,3.2078,3310.7,3310.6,1.4676]
[1765329082394,3.80253291,3311.1,3311.0,0.7326]
[1765329082594,5.27668875,3311.1,3311.0,1.1607]
[1765329083498,5.27668875,3311.1,3311.0,1.8957]
[1765329083697,5.27668875,3311.1,3311.0,1.1607]
[1765329084297,5.27668875,3311.1,3311.0,0.4281]
[1765329084489,5.03094351,3311.1,3311.0,1.1018]
[1765329084696,0.00213291,3311.1,3311.0,1.8336]
[1765329085505,3.2078,3311.5,3311.3,1.4055]
[1765329085796,3.2078,3311.9,3311.8,1.4055]
[1765329086589,3.21073409,3311.9,3311.8,1.4055]
[1765329086796,3.21073409,3311.9,3311.8,2.72983131]
[1765329088503,0.00293409,3311.9,3311.8,5.93763131]
[1765329088807,0.00293409,3311.9,3311.8,4.6133]
[1765329090899,3.2078,3312.9,3312.8,1.4055]
[1765329091101,4.3996,3312.9,3312.8,1.4055]
[1765329091809,4.40226457,3312.9,3312.8,1.4093977]
[1765329094508,0.00266457,3312.9,3312.8,1.4093977]
[1765329096702,0.00453001,3313.2,3313.1,1.4055]
[1765329096903,0.00453001,3313.2,3313.1,4.6133]
[1765329097701,0.00699467,3313.2,3313.1,4.6133]
[1765329100813,1.1918,3313.1,3313.0,1.8263]
[1765329101310,0.5959,3313.1,3313.0,1.8263]
[1765329101501,1.1918,3313.1,3313.0,1.8263]
[1765329101702,1.1918,3313.1,3312.8,0.0038977]
[1765329101898,1.1918,3312.9,3312.8,0.0038977]
[1765329103605,1.1918,3312.9,3311.8,4.6133]
[1765329103606,0.5959,3311.9,3311.8,4.6133]
[1765329104110,1.1918,3311.9,3311.8,1.4055]
[1765329104513,1.1918,3311.9,3311.8,1.40834357]
[1765329105812,0.5959,3311.9,3311.8,1.40834357]
[1765329106009,3.2078,3312.2,3312.1,1.4055]
[1765329106214,3.2078,3312.7,3312.1,1.4055]
[1765329106413,1.1918,3312.6,3312.5,1.0945]
[1765329106711,1.1918,3312.6,3312.5,0.4208]
[1765329106916,0.5959,3312.1,3312.0,1.8263]
[1765329107507,3.2078,3312.7,3312.0,1.8263]
[1765329108014,1.1918,3312.6,3312.5,1.8263]
[1765329108313,1.1918,3312.6,3312.5,1.0945]
[1765329109110,3.2078,3312.7,3312.5,1.8263]
[1765329109319,3.2078,3312.7,3312.6,1.4055]
[1765329109516,3.2078,3312.7,3312.5,0.4208]
[1765329109517,4.3996,3313.1,3313.0,0.4208]
[1765329110903,1.1918,3312.6,3312.5,1.0945]
[1765329111216,0.5959,3312.6,3312.5,1.8263]
[1765329111414,3.2078,3313.1,3312.5,1.8263]
[1765329111717,0.5959,3312.6,3312.5,1.8263]
[1765329113408,1.1918,3312.6,3312.5,1.8263]
[1765329114114,1.1962,3312.2,3312.1,3.2078]
[1765329114316,1.1962,3312.1,3312.0,1.8374]
[1765329116117,1.1962,3312.1,3312.0,1.1547]
[1765329116316,1.1962,3312.1,3312.0,1.8374]
[1765329116506,1.1962,3312.1,3312.0,1.1547]
[1765329116705,1.1962,3312.1,3312.0,1.8374]
[1765329117115,1.1962,3311.9,3311.8,0.00284357]
[1765329117721,1.82775453,3311.9,3311.8,0.00284357]
[1765329118323,1.1962,3311.9,3311.8,0.00284357]
[1765329121715,4.404,3312.1,3312.0,1.8383]
[1765329121915,3.8059,3312.1,3312.0,1.8383]
[1765329122121,4.404,3312.1,3312.0,0.4217]
[1765329122321,1.1962,3311.9,3311.8,0.00284357]
[1765329122521,1.1962,3311.9,3311.8,1.41944357]
[1765329123227,1.1962,3311.9,3311.8,0.73674357]
[1765329123724,1.1962,3311.9,3311.8,1.41944357]
[1765329125528,0.5981,3311.9,3311.8,1.41944357]
[1765329127135,1.1962,3311.9,3311.8,0.00284357]
[1765329127426,0.5981,3311.9,3311.8,1.41944357]
[1765329127615,3.2078,3312.1,3312.0,1.8383]
[1765329127819,3.8059,3312.1,3312.0,1.8383]
[1765329128724,4.404,3312.1,3311.8,0.00284357]
[1765329128923,1.1962,3311.9,3311.8,0.00284357]
[1765329129921,1.82832911,3311.9,3311.8,0.00284357]
[1765329130322,2.07398987,3311.9,3311.8,0.00284357]
[1765329130924,1.82832911,3311.9,3311.8,0.00284357]
[1765329131829,2.07408857,3311.9,3311.8,0.00284357]
[1765329137340,3.3747935,3311.9,3311.8,0.00284357]
[1765329138632,2.07408638,3311.9,3311.8,0.00284357]
[1765329139536,2.07408638,3311.9,3311.0,3.6286]
[1765329139537,1.1956,3311.1,3311.0,5.0456]
[1765329139735,1.1956,3311.1,3311.0,3.6286]
[1765329139935,1.1956,3311.1,3311.0,0.4208]
[1765329140134,1.1956,3311.1,3310.6,3.2078]
[1765329140336,1.1956,3310.7,3310.6,4.6248]
[1765329140531,1.19880893,3310.7,3310.6,3.92359035]
[1765329140838,1.19880893,3310.7,3310.6,3.21069035]
[1765329141034,1.19880893,3310.7,3310.6,4.62769035]
[1765329141940,1.19880893,3310.7,3310.6,3.21069035]
[1765329142134,1.19880893,3310.7,3310.6,0.00289035]
[1765329142635,1.19880893,3310.7,3310.6,0.71579035]
[1765329143836,1.19880893,3310.7,3310.6,0.00289035]
[1765329146741,1.19880893,3310.7,3310.6,0.68289035]
[1765329147538,0.00320893,3310.7,3310.6,1.41129035]
[1765329148440,0.60040893,3310.7,3310.6,1.41129035]
[1765329148636,1.19760893,3310.7,3310.6,0.00289035]
[1765329149138,1.1944,3309.7,3309.6,4.6162]
[1765329149335,0.5972,3309.7,3309.6,1.4084]
[1765329149948,3.2078,3310.2,3309.1,3.2078]
[1765329149949,1.1944,3309.6,3309.1,3.2078]
[1765329150238,0.8772231,3310.1,3309.1,4.6162]
[1765329150239,1.1944,3309.2,3309.1,4.6162]
[1765329150545,0.5972,3309.2,3309.1,4.61880475]
[1765329151336,0.5972,3309.2,3309.1,1.41100475]
[1765329152545,1.1944,3309.2,3309.1,0.00260475]
[1765329152738,1.1944,3308.6,3308.5,1.118]
[1765329153043,1.1944,3308.6,3308.5,1.8464]
[1765329153841,1.1944,3308.6,3308.5,1.85005574]
[1765329154341,0.5972,3308.6,3308.5,1.85005574]
[1765329155641,1.1944,3308.6,3308.5,1.85005574]
[1765329155846,0.5972,3308.6,3308.5,1.85005574]
[1765329157241,1.1944,3308.6,3308.5,0.44165574]
[1765329157549,1.1944,3308.6,3308.5,1.12165574]
[1765329157951,1.1944,3308.6,3308.5,1.85005574]
[1765329158138,0.5972,3308.6,3308.5,1.85005574]
[1765329158337,4.4022,3308.8,3308.7,1.4084]
[1765329158738,3.2078,3308.8,3308.7,1.4084]
[1765329158946,0.00453001,3308.9,3308.8,1.4084]
[1765329161643,3.001e-05,3308.9,3308.8,1.4084]
[1765329161849,3.2078,3309.2,3309.1,1.4084]
[1765329162050,3.8095,3309.6,3309.5,1.8464]
[1765329162850,3.2078,3309.6,3309.5,1.8464]
[1765329163744,0.00453001,3309.9,3309.5,1.8464]
[1765329163950,0.00453001,3309.9,3309.8,1.4084]
[1765329164953,0.60623001,3309.9,3309.8,1.4084]
[1765329165145,0.60623001,3309.9,3309.5,1.8464]
[1765329165146,0.6017,3309.6,3309.5,1.8464]
[1765329165341,0.00453001,3309.9,3309.8,1.4084]
[1765329165342,1.20793001,3309.9,3309.8,1.4084]
[1765329165646,0.60623001,3309.9,3309.8,1.4084]
[1765329166353,1.20793001,3309.9,3309.8,1.4084]
[1765329166949,1.20793001,3309.9,3309.5,0.438]
[1765329167154,4.4112,3309.6,3309.5,0.438]
[1765329167751,4.4112,3309.6,3309.5,1.118]
[1765329168158,4.4112,3309.6,3309.5,1.8464]
[1765329172155,4.4112,3309.6,3309.5,0.438]
[1765329172653,4.4112,3309.6,3309.5,1.118]
[1765329173359,4.4112,3309.6,3309.5,1.8464]
[1765329173859,4.4112,3309.6,3309.5,1.118]
[1765329174050,4.4112,3309.6,3309.5,0.438]
[1765329174453,4.4112,3309.6,3309.5,1.1352]
[1765329175456,4.4112,3309.6,3309.5,1.8591]
[1765329177354,3.8095,3309.6,3309.5,1.8591]
[1765329177561,3.8102,3309.6,3309.5,1.8591]
[1765329177757,4.4126,3309.6,3309.5,1.8591]
[1765329179257,3.2078,3309.6,3309.5,1.8591]
[1765329179461,0.00453001,3309.9,3309.8,1.4211]
[1765329179961,0.60693001,3309.9,3309.8,1.4211]
[1765329180262,1.20933001,3309.9,3309.8,1.4211]
[1765329180664,1.2048,3309.6,3309.5,0.438]
[1765329181164,1.2048,3309.6,3309.5,1.8591]
[1765329181859,4.4126,3309.6,3309.0,3.6458]
[1765329182158,1.2048,3309.1,3309.0,0.438]
[1765329182359,0.6024,3309.1,3309.0,1.8591]
[1765329183560,3.2078,3309.2,3309.1,1.4211]
[1765329183761,3.8102,3309.2,3309.1,1.4211]
[1765329183957,3.2078,3309.2,3309.1,1.4211]
[1765329185871,3.2078,3309.6,3309.5,1.8599]
[1765329186558,4.413,3309.6,3309.5,0.4388]
[1765329186958,5.04793882,3309.6,3309.5,0.4195]
[1765329187568,5.29405064,3309.6,3309.5,0.4195]
[1765329190274,1.2056,3309.1,3309.0,6.65445075]
[1765329190469,1.2056,3309.1,3309.0,5.028]
[1765329192271,0.6028,3309.1,3309.0,5.028]
[1765329192673,2.08797843,3309.4,3309.3,1.3822]
[1765329193171,2.08797843,3309.4,3309.3,0.7018]
[1765329193372,2.08797843,3309.4,3309.3,1.3822]
[1765329193561,2.08797843,3309.4,3309.3,0.7018]
[1765329194071,0.6028,3309.1,3309.0,5.028]
[1765329194876,2.08778812,3309.4,3309.3,1.3822]
[1765329195572,2.08780988,3309.4,3309.3,1.3822]
[1765329198982,1.2056,3309.1,3309.0,5.028]
[1765329199276,1.2056,3309.1,3309.0,4.3476]
[1765329199477,1.2056,3309.1,3309.0,5.028]
[1765329200170,1.2056,3309.1,3308.9,1.62645075]
[1765329200369,1.2056,3308.7,3308.6,1.62645075]
[1765329200571,1.2056,3308.6,3308.5,3.45030649]
[1765329200775,1.2056,3308.6,3308.5,1.82385574]
[1765329201783,2.08725614,3308.6,3308.5,1.82385574]
[1765329202171,2.08725614,3308.6,3308.5,0.44165574]
[1765329202374,2.08725614,3308.6,3308.5,1.14345574]
[1765329204082,1.84100159,3308.6,3308.5,1.14345574]
[1765329204285,1.84100159,3308.6,3308.5,0.44165574]
[1765329204770,2.08688473,3308.6,3308.5,0.44165574]
[1765329205377,1.84100159,3308.6,3308.5,1.15765574]
[1765329206177,1.84100159,3308.6,3308.5,1.84505574]
[1765329206573,3.2078,3308.8,3308.7,0.716]
[1765329206772,5.2940403,3308.8,3308.7,1.4034]
[1765329206979,5.04829406,3308.8,3308.7,1.4034]
[1765329207177,4.4142,3308.8,3308.7,0.716]
[1765329207487,3.811,3308.8,3308.5,0.44165574]
[1765329207675,3.811,3308.8,3308.7,1.4034]
[1765329208183,4.4142,3308.8,3308.7,1.4034]
[1765329211277,1.2064,3308.6,3308.5,1.84505574]
[1765329211679,0.6032,3308.6,3308.5,1.84505574]
[1765329213485,1.23712571,3308.7,3308.6,1.4034]
[1765329214179,1.2064,3308.3,3308.2,0.00453001]
[1765329214387,5.29371813,3308.3,3308.2,0.00453001]
[1765329215184,5.29371813,3308.3,3308.2,0.00832565]
[1765329215185,5.29583433,3308.3,3308.2,0.00832565]
[1765329220287,1.1898,3307.6,3307.5,0.4195]
[1765329220477,4.3976,3307.6,3307.5,0.4195]
[1765329220888,4.3976,3307.6,3307.5,1.1355]
[1765329221186,4.3976,3307.6,3307.5,1.1384795]
[1765329222397,4.3976,3307.6,3307.5,0.0029795]
[1765329222690,1.1898,3306.7,3306.6,3.2078]
[1765329223188,1.1898,3306.7,3306.6,3.9238]
[1765329223592,1.1898,3306.7,3306.6,3.92621594]
[1765329223794,1.1898,3306.7,3306.6,0.00241594]
[1765329224092,0.5949,3306.7,3306.6,1.40581594]
[1765329225194,3.8027,3307.0,3306.9,1.4034]
[1765329225387,4.3976,3307.0,3306.9,1.4034]
[1765329226100,1.1898,3306.7,3306.6,1.40581594]
[1765329227098,0.5949,3306.7,3306.6,1.40581594]
[1765329227297,4.3976,3307.0,3306.9,0.716]
[1765329227793,4.3976,3307.0,3306.9,1.4034]
[1765329228192,3.8027,3307.0,3306.9,1.4034]
[1765329228387,3.2078,3307.0,3306.9,1.4034]
[1765329228595,4.3976,3307.5,3307.4,0.716]
[1765329228896,4.3976,3307.5,3307.4,1.4034]
[1765329229696,3.8027,3307.5,3307.4,1.4034]
[1765329230092,3.2078,3307.5,3307.4,1.4034]
[1765329230489,3.8027,3307.5,3307.4,1.4034]
[1765329233096,3.2078,3307.5,3307.4,1.4034]
[1765329234092,3.8023,3307.5,3307.4,1.4034]
[1765329235597,3.2078,3307.5,3307.4,1.4034]
[1765329236897,3.80683001,3307.9,3307.8,1.4075]
[1765329237903,3.21233001,3307.9,3307.8,1.4075]
[1765329239003,3.80683001,3307.9,3307.8,1.4075]
[1765329239695,3.21233001,3307.9,3307.8,1.4075]
[1765329240102,3.2099162,3308.3,3308.2,1.4075]
[1765329240600,3.8044162,3308.3,3308.2,1.4075]
[1765329240796,1.189,3308.1,3308.0,1.8177]
[1765329241197,3.8044162,3308.3,3308.2,1.4075]
[1765329241398,0.0021162,3308.3,3308.2,1.4075]
[1765329241700,0.5945,3308.1,3308.0,0.4102]
[1765329241904,0.5945,3308.1,3308.0,1.8177]
[1765329243411,0.5966162,3308.3,3308.2,1.4075]
[1765329243612,0.0021162,3308.3,3308.2,1.4075]
[1765329244005,0.5966162,3308.3,3308.2,1.4075]
[1765329244706,0.5945,3308.1,3308.0,1.8177]
[1765329248013,1.1911162,3308.3,3308.2,1.4075]
[1765329249210,0.5966162,3308.3,3308.2,1.4075]
[1765329250712,1.1911162,3308.3,3308.2,1.4075]
[1765329251510,0.5966162,3308.3,3308.2,1.4075]
[1765329255112,0.0021162,3308.3,3308.2,1.4075]
[1765329255409,1.1947162,3308.3,3308.2,0.7229]
[1765329255610,1.1926,3308.1,3308.0,1.8102]
[1765329257117,0.5963,3308.1,3308.0,1.8102]
[1765329257317,0.5984162,3308.3,3308.2,1.4]
[1765329258222,0.0021162,3308.3,3308.2,1.4]
[1765329263323,1.1946162,3308.3,3308.0,0.4102]
[1765329263530,1.1924,3308.1,3308.0,1.789]
[1765329264226,0.5962,3308.1,3308.0,1.789]
[1765329266130,1.1924,3308.0,3307.9,3.2078]
[1765329266431,1.1924,3307.8,3307.7,1.38333001]
[1765329266626,0.5962,3307.8,3307.7,1.38333001]
[1765329267729,1.1924,3307.8,3307.7,1.38333001]
[1765329267930,1.82410631,3307.8,3307.7,0.00453001]
[1765329268236,2.06970866,3307.8,3307.7,0.00453001]
[1765329268833,14.01070866,3307.8,3307.7,0.00453001]
[1765329269642,14.01070866,3307.8,3307.7,0.68683001]
[1765329269838,14.01070866,3307.8,3307.7,0.00453001]
[1765329270336,13.37900235,3307.8,3307.7,0.00453001]
[1765329272133,1.43800235,3307.8,3307.7,0.00453001]
[1765329272339,13.37900235,3307.8,3307.7,0.00453001]
[1765329272938,1.1924,3307.1,3307.0,5.4009501]
[1765329273138,1.1924,3307.1,3307.0,0.4243]
[1765329273738,1.1924,3307.1,3307.0,1.1066]
[1765329274134,1.1924,3306.7,3306.6,1.38121594]
[1765329274334,1.1924,3306.7,3306.6,0.00241594]
[1765329274540,4.4002,3306.7,3306.6,0.00241594]
[1765329275236,5.70340169,3306.7,3306.6,0.00241594]
[1765329275737,5.70340169,3306.7,3306.2,0.2]
[1765329275738,1.1924,3306.3,3306.2,0.2]
[1765329275936,4.4002,3306.3,3306.2,0.8823]
[1765329276138,4.4002,3306.3,3306.2,1.5788]
[1765329276734,4.4002,3306.3,3306.2,1.58148827]
[1765329277534,10.7592,3306.5,3306.4,1.3788]
[1765329277933,4.4002,3306.5,3306.4,1.3788]
[1765329281043,0.00453001,3306.6,3306.5,1.8064]
[1765329282139,1.19693001,3306.6,3306.5,1.8064]
[1765329282441,1.19693001,3306.6,3306.5,1.1099]
[1765329282745,1.19693001,3306.6,3306.5,1.8064]
[1765329282948,1.1924,3306.3,3306.2,1.58148827]
[1765329283335,1.1924,3306.3,3306.2,0.20268827]
[1765329284034,0.5962,3306.3,3306.2,1.58148827]
[1765329284447,1.1924,3306.3,3306.2,1.58148827]
[1765329286148,0.5962,3306.3,3306.2,1.58148827]
[1765329286651,3.804,3306.5,3306.4,1.3788]
[1765329286952,4.4002,3306.5,3306.4,1.3788]
[1765329289648,4.4002,3306.5,3306.4,0.6823]
[1765329290147,3.2078,3306.5,3306.4,1.3788]
[1765329290452,0.00453001,3306.6,3306.5,1.8064]
[1765329293749,0.60073001,3306.6,3306.5,1.8064]
[1765329294753,0.00453001,3306.6,3306.5,1.8064]
[1765329295255,1.19653001,3306.6,3306.5,1.8062]
[1765329295441,0.00453001,3306.6,3306.5,1.8062]
[1765329302354,0.00453001,3306.6,3306.5,3.43265075]
[1765329302555,0.00453001,3306.6,3306.5,1.8062]
[1765329303358,0.60053001,3306.6,3306.5,1.8062]
[1765329304060,1.19653001,3306.6,3306.5,0.4276]
[1765329304260,1.19653001,3306.6,3306.5,1.8062]
[1765329304454,0.60053001,3306.6,3306.5,1.8062]
[1765329304758,0.00453001,3306.6,3306.5,1.8062]
[1765329305055,3.8083,3307.3,3307.2,1.3786]
[1765329305259,4.05304348,3307.3,3307.2,1.3786]
[1765329305459,4.65354348,3307.3,3307.2,1.3786]
[1765329305759,1.201,3307.1,3307.0,0.4354]
[1765329305960,1.201,3306.6,3306.5,1.1058]
[1765329306361,4.4088,3306.8,3306.7,1.3786]
[1765329306553,3.2078,3306.8,3306.7,1.3786]
[1765329308155,3.8083,3306.8,3306.7,1.3786]
[1765329308858,3.8083,3306.8,3306.5,0.4276]
[1765329308859,1.1988,3306.6,3306.5,1.1267]
[1765329309358,1.1988,3306.6,3306.5,0.4276]
[1765329309753,4.4066,3306.8,3306.7,1.377]
[1765329310149,3.8072,3306.8,3306.7,1.377]
[1765329310349,4.4066,3306.8,3306.7,1.377]
[1765329310863,1.1988,3306.6,3306.5,0.4276]
[1765329311059,1.1988,3306.3,3306.2,1.99174557]
[1765329311258,1.1988,3306.3,3306.2,1.58421828]
[1765329311459,1.1988,3306.3,3306.2,0.20721828]
[1765329312071,4.4066,3306.3,3306.2,0.20721828]
[1765329313066,4.65122735,3306.3,3306.2,0.20721828]
[1765329314458,4.65122735,3306.3,3306.2,1.58421828]
[1765329314657,4.4066,3306.3,3306.2,1.58421828]
[1765329316466,3.2078,3306.3,3306.2,1.58421828]
[1765329316862,3.8072,3306.3,3306.2,1.58421828]
[1765329317067,4.4066,3306.3,3306.2,1.58421828]
[1765329317261,3.8072,3306.3,3306.2,1.58421828]
[1765329317763,1.1988,3306.6,3306.5,1.8158]
[1765329317966,0.5994,3306.6,3306.5,1.8158]
[1765329318267,1.1988,3306.6,3306.5,1.8158]
[1765329318961,1.4071,3306.3,3306.2,0.20721828]
[1765329319168,4.8592674,3306.3,3306.2,0.20721828]
[1765329321163,4.6149,3306.3,3306.2,0.20721828]
[1765329322456,4.6149,3306.3,3306.2,0.90631828]
[1765329322659,4.6149,3306.3,3306.2,0.20721828]
[1765329323168,4.6149,3306.3,3306.2,0.90631828]
[1765329323465,4.6149,3306.3,3306.2,1.58421828]
[1765329323862,3.2078,3306.3,3306.2,1.58421828]
[1765329325163,0.74053001,3306.9,3306.8,1.3604]
[1765329325358,4.61933001,3306.9,3306.8,1.3604]
[1765329325965,4.61933001,3306.9,3306.2,0.20721828]
[1765329326166,0.736,3306.3,3306.2,1.56761828]
[1765329326774,1.8209,3306.5,3306.4,1.3604]
[1765329326972,4.61933001,3306.9,3306.8,0.6852]
[1765329327176,1.407,3306.3,3306.2,0.20721828]
[1765329329178,1.407,3306.3,3306.2,0.89241828]
[1765329329379,1.407,3306.3,3306.2,0.20721828]
[1765329329573,1.407,3306.3,3306.2,0.89241828]
[1765329330381,1.407,3306.3,3306.2,0.20721828]
[1765329330576,2.03945574,3306.3,3306.2,0.20721828]
[1765329332183,2.03945574,3306.3,3306.2,0.89241828]
[1765329332184,1.407,3306.3,3306.2,0.89241828]
[1765329332886,4.3577,3306.5,3306.4,1.3604]
[1765329333481,1.8209,3306.5,3306.4,1.3604]
[1765329333993,1.1499,3306.5,3306.4,1.3604]
[1765329334590,4.61933001,3306.9,3306.8,1.3604]
[1765329335384,5.25209863,3306.9,3306.8,1.3604]
[1765329335585,0.00453001,3306.9,3306.8,1.3604]
[1765329336484,0.74053001,3306.9,3306.8,1.3604]
[1765329336688,0.00453001,3306.9,3306.8,1.3604]
[1765329338287,1.36882879,3307.2,3307.1,1.3604]
[1765329338796,1.8209,3307.0,3306.9,1.3604]
[1765329338996,1.1499,3307.0,3306.9,1.3604]
[1765329339196,0.736,3307.0,3306.9,1.3604]
[1765329339398,3.2078,3307.3,3307.2,0.6852]
[1765329339399,4.61933001,3307.3,3307.2,0.6852]
[1765329339597,5.25217036,3307.3,3307.2,0.6852]
[1765329339899,5.25217036,3307.3,3307.2,1.3604]
[1765329340091,5.25217036,3307.3,3306.7,3.2078]
[1765329340293,4.61933001,3307.3,3306.7,3.2078]
[1765329340593,1.407,3306.8,3306.7,4.5682]
[1765329340991,0.736,3306.8,3306.7,4.5682]
[1765329341399,1.1499,3307.0,3306.9,1.3604]
[1765329341690,3.94833001,3307.3,3307.2,1.3604]
[1765329341895,4.61933001,3307.3,3307.2,1.3604]
[1765329342090,0.00453001,3307.3,3307.2,1.3604]
[1765329343398,0.00453001,3307.3,3306.7,3.2078]
[1765329343399,1.41153001,3307.3,3306.7,3.2078]
[1765329343589,1.41153001,3307.3,3307.2,1.3604]
[1765329343789,0.74053001,3307.3,3307.2,1.3604]
[1765329344693,1.41153001,3307.3,3306.7,3.2078]
[1765329344894,1.407,3306.8,3306.7,4.5682]
[1765329345204,1.407,3306.8,3306.7,3.893]
[1765329345394,1.407,3306.8,3306.7,3.2078]
[1765329345894,1.407,3306.8,3306.7,3.893]
[1765329346595,1.407,3306.8,3306.7,3.2078]
[1765329347297,1.407,3306.8,3306.7,3.893]
[1765329348399,1.407,3306.8,3306.7,4.5682]
[1765329348796,0.736,3306.8,3306.7,4.5682]
[1765329348998,0.74053001,3307.3,3307.2,1.3604]
[1765329349600,1.41153001,3307.3,3307.2,1.3604]
[1765329352600,0.74053001,3307.3,3307.2,1.3604]
[1765329352792,0.00453001,3307.3,3307.2,4.5682]
[1765329353703,0.74053001,3307.3,3307.2,4.5682]
[1765329354702,1.46613001,3307.3,3307.2,3.893]
[1765329354907,0.00453001,3307.3,3307.2,4.585]
[1765329355106,0.69203001,3307.3,3307.2,4.585]
[1765329355708,0.00453001,3307.3,3307.2,4.585]
[1765329356200,1.41763001,3307.3,3307.2,4.585]
[1765329357707,1.4131,3306.9,3306.8,3.2078]
[1765329357900,1.4131,3306.9,3306.8,3.9153]
[1765329359410,1.4131,3306.9,3306.8,3.2078]
[1765329360010,1.4131,3306.9,3306.4,3.2078]
[1765329360212,1.4131,3306.9,3306.8,0.7075]
[1765329361607,1.8507,3306.5,3306.4,3.2078]
[1765329361806,1.4131,3306.3,3306.2,0.20721828]
[1765329366113,2.04559416,3306.3,3306.2,0.20721828]
[1765329367117,1.4131,3306.3,3306.2,0.20721828]
[1765329369821,1.4131,3306.3,3306.2,0.91471828]
[1765329370220,1.4131,3306.3,3306.2,0.20721828]
[1765329371821,4.6209,3306.3,3306.2,0.20721828]